[Event "Summer Prague Open-A 2022"]
[Site "Prague"]
[Date "2022.08.12"]
[Round "9.19"]
[White "Risting, Eivind Olav"]
[Black "Seitz, Patrick"]
[Result "1-0"]
[ECO "A61"]
[WhiteElo "2325"]
[BlackElo "2170"]
[Annotator "TA"]
[PlyCount "93"]
[EventDate "2022.08.05"]
[EventType "swiss"]
[EventCountry "CZE"]
[SourceTitle "playchess.com"]
[Source "ChessBase"]
[SourceQuality "1"]
[TimeControl "40/5400+30:1800+30"]

{[%evp 34,93,18,0,0,0,5,0,0,0,93,92,100,64,82,83,117,102,125,102,141,134,162,90,109,88,97,112,290,310,305,285,410,264,252,185,334,325,406,322,273,101,120,85,104,0,93,0,125,83,557,168,1145,209,1118,435,1205,1196,1181,1095,6179,5616]} 1. d4 {[%emt 0:00:03]} Nf6 {[%emt 0:16:02]} 2. c4 {[%emt 0:00:35]} c5 {[%emt 0:00:32]} 3. d5 {[%emt 0:00:42]} e6 {[%emt 0:00:06]} 4. Nc3 {[%emt 0:00:05]} exd5 {[%emt 0:00:05]} 5. cxd5 {[%emt 0:00:06]} d6 {[%emt 0:00:06]} 6. Nf3 {[%emt 0:00:29]} g6 {[%emt 0:00:07]} 7. Bf4 {[%emt 0:00:20]} Bg7 {[%emt 0:00:29]} 8. Qa4+ {[%emt 0:00:36]} Bd7 {[%emt 0:00:17]} 9. Qb3 {[%emt 0:00:18]} Qc7 {[%emt 0:00:07]} 10. e4 {[%emt 0:08:47]} O-O {[%emt 0:03:38]} 11. Be2 {[%emt 0:01:51]} Nh5 {[%emt 0:11:20]} 12. Be3 {[%emt 0:04:16]} Bg4 {[%emt 0:01:32]} 13. h3 {[%emt 0:02:06]} Bxf3 {[%emt 0:00:34]} 14. Bxf3 {[%emt 0:00:29]} Nd7 {[%emt 0:07:02]} 15. O-O {[%emt 0:09:28]} Nhf6 {[%emt 0:02:30]} 16. Bf4 {[%emt 0:06:42]} a6 {[%emt 0:03:21]} 17. a4 {[%emt 0:00:13]} Rfe8 {[%emt 0:01:33]} 18. Rfe1 {[%emt 0:00:52]} Ne5 {[%emt 0:00:31] A70: Modern Benoni: 6 e4 g6 7 Nf3.} 19. Be2 {[%emt 0:03:03]} Nfd7 {[%emt 0:04:04]} 20. Qc2 {[%emt 0:13:24]} Rab8 {[%emt 0:03:21] The position is equal.} 21. Be3 {[%emt 0:03:02] [#] aiming for f4.} f6 $146 {[%emt 0:09:21]} (21... c4 $1 $11) ({Predecessor:} 21... c4 22. a5 Nc5 23. f3 Nb3 24. Bb6 Nxa1 25. Rxa1 Qc8 26. Ra4 Qd7 27. Rxc4 Rbc8 28. Rxc8 Qxc8 29. Qb3 Nd7 30. Bf2 Qc7 {½-½ (67) Wanger,T (1959)-Kaufmann,P (1909) Hungary 2013}) 22. a5 $16 {[%emt 0:03:45]} Re7 {[%emt 0:03:45]} 23. Nb1 {[%emt 0:06:42]} Nf7 {[%emt 0:02:16]} 24. Nd2 {[%emt 0:02:20]} Bh6 {[%emt 0:05:33]} 25. Bg4 {[%emt 0:07:18]} Bxe3 {[%emt 0:03:52]} 26. Rxe3 {[%emt 0:00:05]} (26. fxe3 Nfe5 $11) 26... Kg7 {[%emt 0:00:58]} 27. f4 {[%emt 0:02:37]} Rbe8 {[%emt 0:05:19]} 28. Be6 {[%emt 0:01:23] Against f5} ({White should play} 28. Qc3 $18) 28... Nd8 {[%emt 0:02:10]} 29. f5 {[%emt 0:00:23]} Ne5 {[%emt 0:00:29]} 30. Rc3 {[%emt 0:01:52]} gxf5 $2 {[%emt 0:05:07]} (30... Qb8 $16) 31. exf5 $18 {[%emt 0:00:22][%cal Be4f5,Bf5e6][%mdl 32]} (31. Bxf5 Ndf7 32. Qd1 Nh6 $16) 31... Kh8 {[%emt 0:00:07]} 32. Ne4 {[%emt 0:05:07]} Rf8 {[%emt 0:01:14]} (32... c4 {keeps fighting.} 33. Qf2 Rg7) 33. Qf2 {[%emt 0:01:47][%cal Rc3c5] And now Rxc5! would win.} Rg7 {[%emt 0:01:50]} 34. Rg3 {[%emt 0:03:57]} Nxe6 {[%emt 0:02:04]} (34... Rxg3 {might work better.} 35. Qxg3 Qe7) 35. fxe6 {[%emt 0:01:16]} (35. dxe6 Rxg3 36. Nxg3 (36. Qxg3 d5 $14) 36... d5 $16) 35... Rxg3 {[%emt 0:00:22]} 36. Qxg3 {[%emt 0:02:54]} f5 {[%emt 0:00:09]} 37. Nc3 {[%emt 0:05:15]} (37. Qf4 $18 {is more deadly.}) 37... Rg8 {[%emt 0:00:58]} 38. Qf2 {[%emt 0:00:44]} Qg7 {[%emt 0:00:13]} 39. Rd1 {[%emt 0:00:54] Against Nd3} (39. Kh1 $16) 39... c4 {[%emt 0:00:56]} (39... f4 $1 $11) 40. Rd2 {[%emt 0:00:50]} ({Better is} 40. Kh1 $16) 40... Qg5 {[%emt 0:01:08]} (40... Qh6 $1 $11 {remains equal.} 41. Kh1 f4) 41. Re2 {[%emt 0:06:40]} Rg7 $2 {[%emt 0:07:55][%mdl 8192] [#]} (41... Kg7 $16) 42. Kh1 $2 {[%emt 0:09:12]} (42. Rxe5 $1 {[%mdl 512]} dxe5 43. d6) 42... Qh5 {[%emt 0:04:41] [#]} (42... Rg8 43. Rc2 h6) 43. Qd4 $2 {[%emt 0:03:33]} (43. Rxe5 $1 {[%mdl 512]} dxe5 44. d6) 43... Nf3 $2 {[%emt 0:03:32]} (43... Qg5 44. Qf2 Nd3) 44. Qb6 {[%emt 0:02:25]} (44. Qf6 $142 h6 45. e7) 44... Qg5 {[%emt 0:11:27]} (44... Rg3 $142 45. Qd8+ (45. Qxd6 $2 {leads to mate.} Qxh3+ 46. gxh3 Rg1#) 45... Kg7 46. Qe7+ (46. Qxd6 $2 {gets mated.} Qxh3+ 47. gxh3 Rg1#) 46... Kg8 47. Qf7+ (47. Qxd6 $2 Qxh3+ 48. gxh3 Rg1#) 47... Qxf7 48. exf7+ Kxf7) 45. Qe3 {[%emt 0:02:51] Active counter play!} (45. gxf3 {is a self mate.} Qc1+ 46. Kh2 Qf4+ 47. Kh1 Qxf3+ 48. Kh2 Qg3+ 49. Kh1 Qxh3+ 50. Rh2 Qf3+) 45... Qxe3 {[%emt 0:03:15]} 46. Rxe3 {[%emt 0:00:04]} Ne5 {[%emt 0:00:04] [#]} 47. Rxe5 $1 {[%emt 0:00:07][%mdl 512] Weighted Error Value: White=1.04/Black=0.76} 1-0

[Event "Summer Prague Open-A 2022"]
[Site "Prague"]
[Date "2022.08.12"]
[Round "9.20"]
[White "Kovalskyi, Roman"]
[Black "Santagati, Alessandro"]
[Result "0-1"]
[ECO "B02"]
[WhiteElo "2056"]
[BlackElo "2299"]
[Annotator "TA"]
[PlyCount "70"]
[EventDate "2022.08.05"]
[EventType "swiss"]
[EventCountry "CZE"]
[SourceTitle "playchess.com"]
[Source "ChessBase"]
[SourceQuality "1"]
[TimeControl "40/5400+30:1800+30"]

{[%evp 11,70,12,20,0,-4,-3,21,0,13,0,-2,-3,0,-36,-42,-100,54,-45,-46,-49,-50,-11,0,0,14,5,22,14,30,-176,-199,-397,-278,-1233,-1215,-1311,-1297,-1219,-1191,-1441,-1423,-29982,-1396,-6527,-1383,-1367,-1377,-1366,-1340,-1466,-1422,-1810,-1830,-1704,-1665,-29989,-29990,-29991,-29992,-29995,-29996]} 1. e4 {[%emt 0:00:02][%cal Be2e4,Be4e5][%mdl 32]} Nf6 {[%emt 0:01:48]} 2. e5 {[%emt 0:00:06]} Nd5 {[%emt 0:00:04]} 3. Nc3 {[%emt 0:00:09]} Nxc3 {[%emt 0:00:50]} 4. dxc3 {[%emt 0:00:04]} d6 {[%emt 0:00:18]} 5. Nf3 {[%emt 0:00:26]} Nc6 {[%emt 0:00:31]} 6. Bb5 {[%emt 0:00:07]} Bd7 {[%emt 0:03:00]} 7. exd6 {[%emt 0:00:12] B02: Alekhine's Defence: Chase Variation and lines with early Nc3.} cxd6 {[%emt 0:01:27]} 8. Be3 {[%emt 0:00:08] [#]} e5 $146 {[%emt 0:07:06]} ({Predecessor:} 8... g6 9. Qd2 Bg7 10. O-O O-O 11. Rfe1 Re8 12. a4 Qc7 13. h4 a6 14. Bf1 Ne5 15. Nxe5 Bxe5 {1-0 (66) Ivanov,L (1822)-Genchev,D (1661) Varna 2019}) 9. Qd2 {[%emt 0:01:28] The position is equal.} Be7 {[%emt 0:00:55]} 10. h4 {[%emt 0:00:35]} h6 {[%emt 0:05:13]} 11. O-O-O {[%emt 0:02:08]} Be6 {[%emt 0:04:53]} 12. Qe2 {[%emt 0:16:19][%cal Of3e5]} Qa5 {[%emt 0:05:54]} 13. Nd2 {[%emt 0:02:57]} (13. Bc4 $15) 13... Bxa2 $2 {[%emt 0:09:52] [#]} (13... Qxa2 $17 {Hoping for ...Qa1+.} 14. Bc4 Bxc4 15. Qxc4 Qa1+ 16. Nb1 O-O) 14. f4 {[%emt 0:03:11]} (14. Nc4 $1 $14 Bxc4 15. Bxc4) 14... O-O {[%emt 0:09:29] White must now prevent ...Be6.} 15. Nb3 $1 {[%emt 0:06:38]} Bxb3 {[%emt 0:06:49]} 16. cxb3 {[%emt 0:00:10]} a6 {[%emt 0:01:19]} 17. Bd3 {[%emt 0:00:28]} Qa2 {[%emt 0:04:34] And now ...Na5 would win.} 18. b4 {[%emt 0:08:48] Prevents Na5.} Rac8 {[%emt 0:06:11]} (18... Nxb4 $5 19. cxb4 (19. Bb1 Qb3 $17) 19... Bf6 $11) 19. Bb1 {[%emt 0:02:22] A strong pair of Bishops.} Qa4 {[%emt 0:07:12]} 20. f5 $2 {[%emt 0:15:46] This costs White the game.} (20. Qc2 $11 {and White stays safe.} Qxc2+ 21. Bxc2) 20... Nxb4 $19 {[%emt 0:09:15] aiming for ...d5.} 21. g4 $2 {[%emt 0:00:22]} (21. Rh3 {keeps fighting.}) 21... Qb3 {[%emt 0:04:42][%cal Oc8c3] ...Rxc3+! is the strong threat.} 22. g5 $2 {[%emt 0:06:52] [#]} (22. Bd2 f6 23. g5 fxg5 24. hxg5 Bxg5 25. Rh3 Bxd2+ 26. Qxd2 Na2+ 27. Bxa2 Qxa2 28. Qxd6 Rxf5 29. Qd5+ Qxd5 30. Rxd5) 22... Rxc3+ $1 {[%emt 0:02:51][%mdl 512]} 23. bxc3 {[%emt 0:00:46]} (23. Kd2 Nd5) 23... Qxc3+ {[%emt 0:00:18]} 24. Bc2 {[%emt 0:00:05]} Rc8 {[%emt 0:00:47] ( -> ...d5)} 25. Rh2 {[%emt 0:07:20]} Qa3+ {[%emt 0:02:28]} 26. Kb1 {[%emt 0:01:59]} Qa2+ {[%emt 0:00:12]} 27. Kc1 {[%emt 0:00:04]} Qa1+ {[%emt 0:00:07]} (27... d5 $142 28. Bc5 Rxc5) 28. Kd2 {[%emt 0:00:04]} Rxc2+ {[%emt 0:00:20]} 29. Ke1 {[%emt 0:00:02]} Rxe2+ {[%emt 0:00:19]} 30. Rxe2 {[%emt 0:00:15]} Qc3+ {[%emt 0:00:24]} 31. Kf1 {[%emt 0:00:01]} Nc2 {[%emt 0:01:27]} 32. f6 {[%emt 0:01:24]} Bxf6 {[%emt 0:00:50]} 33. Bd2 {[%emt 0:00:54]} Qf3+ {[%emt 0:00:21] Black mates.} 34. Kg1 {[%emt 0:00:12]} Qxe2 {[%emt 0:00:14]} 35. gxf6 {[%emt 0:00:03]} Qxd1+ {[%emt 0:00:12] Weighted Error Value: White=1.34/Black=0.44} 0-1

[Event "Summer Prague Open-A 2022"]
[Site "Prague"]
[Date "2022.08.12"]
[Round "9.21"]
[White "Soural, Jan"]
[Black "Slampa, Jan"]
[Result "1/2-1/2"]
[ECO "E18"]
[WhiteElo "2119"]
[BlackElo "2254"]
[Annotator "TA"]
[PlyCount "40"]
[EventDate "2022.08.05"]
[EventType "swiss"]
[EventCountry "CZE"]
[SourceTitle "playchess.com"]
[Source "ChessBase"]
[SourceQuality "1"]
[TimeControl "40/5400+30:1800+30"]

{[%evp 17,23,42,48,36,35,46,35,43]} 1. Nf3 {[%emt 0:00:03]} Nf6 {[%emt 0:00:08]} 2. c4 {[%emt 0:00:21]} e6 {[%emt 0:00:05]} 3. g3 {[%emt 0:00:16]} b6 {[%emt 0:00:12]} 4. Bg2 {[%emt 0:00:15]} Bb7 {[%emt 0:00:05]} 5. O-O {[%emt 0:00:18]} Be7 {[%emt 0:00:10]} 6. d4 {[%emt 0:00:56]} O-O {[%emt 0:00:12]} 7. Nc3 {[%emt 0:00:18]} d6 {[%emt 0:01:10]} 8. Qc2 {[%emt 0:00:56]} Nbd7 {[%emt 0:03:03]} 9. Rd1 {[%emt 0:00:39]} c5 {[%emt 0:01:41] White is slightly better.} 10. b3 {[%emt 0:01:41] E18: Queen's Indian: Old Main Line (4 g3 Bb7 5 Bg2 Be7 6 0-0 0-0 7 Nc3).} cxd4 {[%emt 0:00:21]} 11. Nxd4 {[%emt 0:00:12]} Bxg2 {[%emt 0:01:11]} 12. Kxg2 {[%emt 0:00:06] [#]} {Predecessor:} Qc7 $146 13. Bb2 a6 14. Rac1 Rac8 15. e4 Qb7 16. Qe2 Nc5 17. f3 Rfd8 18. Rc2 g6 19. Rcd2 h5 20. h4 Ncd7 {1-0 (31) Cherniaiev,T (2186)-Boci,P (1709) Thessaloniki 2022} 1/2-1/2

[Event "Summer Prague Open-A 2022"]
[Site "Prague"]
[Date "2022.08.12"]
[Round "9.22"]
[White "Horak, Martin"]
[Black "Ouaki, Mark"]
[Result "1-0"]
[ECO "A45"]
[WhiteElo "2238"]
[BlackElo "2015"]
[Annotator "TA"]
[PlyCount "79"]
[EventDate "2022.08.05"]
[EventType "swiss"]
[EventCountry "CZE"]
[SourceTitle "playchess.com"]
[Source "ChessBase"]
[SourceQuality "1"]
[TimeControl "40/5400+30:1800+30"]

{[%evp 9,79,-17,-14,-21,3,8,12,-12,-14,-24,-16,-26,17,-31,81,83,66,78,63,63,60,67,71,61,65,64,53,60,127,127,155,55,102,95,228,164,159,162,177,189,181,177,180,194,177,172,296,299,383,369,369,357,1187,1166,1145,1098,1053,726,964,971,1924,1860,1945,1769,2398,2962,5722,2916,2908,2769,2190,1155]} 1. d4 {[%emt 0:06:24]} Nf6 {[%emt 0:00:17]} 2. Bg5 {[%emt 0:00:06]} d5 {[%emt 0:00:51]} 3. Bxf6 {[%emt 0:00:04]} exf6 {[%emt 0:00:05]} 4. e3 {[%emt 0:00:05]} Bd6 {[%emt 0:01:27]} 5. g3 {[%emt 0:00:07]} c6 {[%emt 0:01:58]} 6. Bg2 {[%emt 0:00:09] D00: 1 d4 d5: Unusual lines.} Qb6 {[%emt 0:02:50]} 7. b3 {[%emt 0:15:47]} a5 {[%emt 0:05:56][%cal Ba7a5,Ba5a4][%mdl 32]} 8. a3 {[%emt 0:01:36] The position is equal.} a4 {[%emt 0:08:47]} 9. b4 {[%emt 0:01:02] [#]} O-O $146 {[%emt 0:02:08]} ({Predecessor:} 9... Be6 10. Nd2 Na6 11. Ne2 f5 12. c4 dxc4 13. Qc1 Nc7 14. Nxc4 Bxc4 15. Qxc4 Qb5 {1-0 (47) Alvarez Fernandez,E (2355)-Pfreundt,J (1990) Pontevedra 2014}) 10. Nd2 {[%emt 0:04:02][%cal Bb1d2,Bd2c4,Bc4a5][%mdl 32]} Re8 {[%emt 0:03:33]} 11. Ne2 {[%emt 0:02:49]} (11. Qe2 $11 {is more appropriate.}) 11... Bg4 {[%emt 0:04:01]} (11... Qa6 $1 $15 {keeps the upper hand.}) 12. c4 $16 {[%emt 0:03:25] [#] Black must now prevent c5.} dxc4 {[%emt 0:00:30]} 13. Nxc4 {[%emt 0:00:11]} Qd8 {[%emt 0:01:17]} 14. O-O {[%emt 0:14:03]} Bf8 {[%emt 0:04:57]} 15. Re1 {[%emt 0:02:02]} Nd7 {[%emt 0:04:36]} 16. Qc2 {[%emt 0:03:38]} Nb6 {[%emt 0:05:47]} 17. Na5 {[%emt 0:01:50]} Qd7 {[%emt 0:02:52]} 18. Nf4 {[%emt 0:02:09]} Nd5 {[%emt 0:02:53] [#]} (18... Bf5 $14 19. e4 Be6) 19. Nd3 $1 {[%emt 0:02:33]} Be6 {[%emt 0:11:25]} 20. e4 {[%emt 0:06:47]} ({White should play} 20. Nc5 $16 Bxc5 21. dxc5) 20... Nb6 {[%emt 0:01:06]} (20... Nc7 $14) 21. Nc5 {[%emt 0:00:36]} Bxc5 {[%emt 0:00:12] A mistake that costs the game.} (21... Qxd4 $16 22. Nxe6 (22. Naxb7 Bc4 $16) (22. Ncxb7 Rec8 $16) 22... Rxe6) 22. dxc5 {[%emt 0:00:06]} Nc8 {[%emt 0:04:58]} 23. Rad1 {[%emt 0:00:57] White is more active.} Qc7 {[%emt 0:00:44]} 24. Qxa4 {[%emt 0:00:41]} Ne7 {[%emt 0:03:34]} 25. Qc2 {[%emt 0:01:23]} Red8 {[%emt 0:05:09]} 26. Rxd8+ {[%emt 0:01:50]} Rxd8 {[%emt 0:00:07]} 27. Rd1 {[%emt 0:00:05]} b6 {[%emt 0:05:20]} (27... Re8 $142 28. f4 g6) 28. cxb6 $18 {[%emt 0:02:55]} Rxd1+ {[%emt 0:01:34]} 29. Qxd1 {[%emt 0:00:05]} Qxb6 {[%emt 0:00:05]} 30. Qd6 {[%emt 0:00:05] Against c5} Ng6 {[%emt 0:00:55]} (30... Nc8 31. Qxc6 g5 32. Qxb6 Nxb6) 31. Nxc6 {[%emt 0:00:31] White is clearly winning.} Kh8 {[%emt 0:01:47]} 32. a4 {[%emt 0:00:42][%cal Ba3a4,Ba4a5,Ba5a6,Ba6a7][%mdl 32] a5 is the strong threat.} h5 {[%emt 0:00:43]} 33. Qd8+ {[%emt 0:00:21]} Qxd8 {[%emt 0:00:09]} 34. Nxd8 {[%emt 0:00:07]} Ne5 {[%emt 0:01:46]} 35. Nxe6 {[%emt 0:00:16]} fxe6 {[%emt 0:00:04] KB-KN} 36. b5 {[%emt 0:00:39]} Kg8 {[%emt 0:00:30]} 37. a5 {[%emt 0:00:22] Hoping for a6.} Nc4 {[%emt 0:00:17]} 38. a6 {[%emt 0:00:30]} e5 {[%emt 0:01:10]} 39. a7 {[%emt 0:00:03]} Nb6 {[%emt 0:00:04]} 40. Bh3 {[%emt 0:00:11] Weighted Error Value: White=0.12 (very precise) /Black=0.33} 1-0

[Event "Summer Prague Open-A 2022"]
[Site "Prague"]
[Date "2022.08.12"]
[Round "9.23"]
[White "Stoica, Savas Marin"]
[Black "Polster, Christian"]
[Result "1/2-1/2"]
[ECO "A61"]
[WhiteElo "2092"]
[BlackElo "2236"]
[Annotator "TA"]
[PlyCount "39"]
[EventDate "2022.08.05"]
[EventType "swiss"]
[EventCountry "CZE"]
[SourceTitle "playchess.com"]
[Source "ChessBase"]
[SourceQuality "1"]
[TimeControl "40/5400+30:1800+30"]

{[%evp 33,39,46,57,0,14,7,17,0]} 1. d4 {[%emt 0:00:06] Kapengut} Nf6 {[%emt 0:04:48]} 2. c4 {[%emt 0:00:18]} e6 {[%emt 0:00:08]} 3. Nf3 {[%emt 0:00:33]} c5 {[%emt 0:02:02]} 4. d5 {[%emt 0:00:25]} exd5 {[%emt 0:00:27]} 5. cxd5 {[%emt 0:00:11]} d6 {[%emt 0:00:05]} 6. Nc3 {[%emt 0:00:08][%cal Bb1c3,Bc3e4,Be4d6][%mdl 32]} g6 {[%emt 0:00:40]} 7. e4 {[%emt 0:00:48]} Bg7 {[%emt 0:00:38]} 8. h3 {[%emt 0:00:24]} O-O {[%emt 0:00:15]} 9. Bd3 {[%emt 0:00:03]} b5 {[%emt 0:04:23]} 10. Bxb5 {[%emt 0:00:49]} Nxe4 {[%emt 0:03:08]} 11. Nxe4 {[%emt 0:00:05]} Qa5+ {[%emt 0:00:09]} 12. Nfd2 {[%emt 0:00:03]} Qxb5 {[%emt 0:01:22]} 13. Nxd6 {[%emt 0:00:06]} Qa6 {[%emt 0:05:14]} 14. N2c4 {[%emt 0:00:04]} Nd7 {[%emt 0:14:32]} 15. O-O {[%emt 0:00:45]} Nb6 {[%emt 0:02:33]} 16. Nxb6 {[%emt 0:21:48]} Qxb6 {[%emt 0:03:03]} 17. Nxc8 {[%emt 0:00:38]} Raxc8 {[%emt 0:00:20]} 18. Bg5 {[%emt 0:16:30] Against Rfd8. aiming for d6. A70: Modern Benoni: 6 e4 g6 7 Nf3.} (18. d6 $5 {[%cal Rc1g5]}) 18... Qxb2 {[%emt 0:09:35] [#]} 19. Rc1 $146 {[%emt 0:05:14]} ({Predecessor:} 19. Qf3 Qe5 20. Bf4 Qf5 21. g4 Qf6 22. Qg3 g5 23. Bc7 Qc3 24. Rac1 Qxg3+ 25. Bxg3 Bd4 {1-0 (40) Krasenkow,M (2641)-Lagowski,P (2321) Warsaw 2002 CBM 089 [Kapengut]}) 19... Bf6 {[%emt 0:08:04] Inhibits Be7.} 20. Rc2 {[%emt 0:01:28] Not much happened in this game.} 1/2-1/2

[Event "Summer Prague Open-A 2022"]
[Site "Prague"]
[Date "2022.08.12"]
[Round "9.24"]
[White "Jordanov, Mihail"]
[Black "Buchenau, Frank"]
[Result "0-1"]
[ECO "C02"]
[WhiteElo "2158"]
[BlackElo "2277"]
[Annotator "TA"]
[PlyCount "62"]
[EventDate "2022.08.05"]
[EventType "swiss"]
[EventCountry "CZE"]
[SourceTitle "playchess.com"]
[Source "ChessBase"]
[SourceQuality "1"]
[TimeControl "40/5400+30:1800+30"]

{[%evp 10,62,27,0,8,25,14,25,38,22,42,0,0,0,0,-35,-32,-256,-279,-343,-204,-309,-297,-285,-287,-547,-566,-561,-563,-563,-553,-556,-517,-639,-637,-656,-655,-656,-645,-627,-623,-631,-654,-658,-643,-852,-847,-822,-818,-811,-793,-1402,-1396,-1297,-1266]} 1. e4 {[%emt 0:00:05]} e6 {[%emt 0:00:13]} 2. d4 {[%emt 0:00:08]} d5 {[%emt 0:00:10]} 3. e5 {[%emt 0:00:08]} c5 {[%emt 0:00:13]} 4. c3 {[%emt 0:00:07]} Qb6 {[%emt 0:00:37]} 5. Nf3 {[%emt 0:00:19]} Bd7 {[%emt 0:00:24]} 6. Bd3 {[%emt 0:00:21]} cxd4 {[%emt 0:01:01] C02: French: Advance Variation.} 7. Nxd4 {[%emt 0:00:30] is cutting edge theory.} Bc5 {[%emt 0:03:19]} 8. Qg4 {[%emt 0:03:40]} Ne7 {[%emt 0:04:27] White has an edge.} 9. O-O {[%emt 0:04:21]} Ng6 {[%emt 0:04:01] [#]} 10. h4 $146 {[%emt 0:24:00]} ({Predecessor:} 10. Nf3 Bb5 11. Bxb5+ Qxb5 12. Nbd2 Nd7 13. Nb3 Be7 14. Re1 h5 15. Qg3 Nc5 16. Nxc5 Bxc5 {0-1 (50) Matlakov,M (2688)-Gorovykh,E (2488) St Petersburg 2021}) 10... O-O {[%emt 0:04:54]} 11. Nf3 {[%emt 0:05:40]} Nc6 $36 {[%emt 0:19:03][%mdl 2048] Black fights for an advantage.} 12. Qh5 {[%emt 0:09:53]} Be8 {[%emt 0:18:59] ...f5 is the strong threat.} 13. Ng5 $2 {[%emt 0:19:35] Now White is beyond hope.} (13. Bxg6 $15 fxg6 14. Qg4) 13... h6 $19 {[%emt 0:00:52]} 14. b4 {[%emt 0:00:33]} Be7 {[%emt 0:12:46]} ({Inferior is} 14... hxg5 15. bxc5 Qa5 16. Bxg6 fxg6 17. Qxg5 $15) (14... Nxb4 $142 15. cxb4 Bd4) 15. Nxe6 {[%emt 0:12:29]} (15. Be3 $142 Qc7 16. Nxe6 (16. Bxg6 $2 fxg6 17. Nxe6 Qc8 $19) 16... fxe6 17. Bxg6) 15... fxe6 {[%emt 0:01:00]} 16. Bxg6 {[%emt 0:00:43][%cal Oc1h6]} Rf5 {[%emt 0:05:20][%mdl 64] [#] Pin, Double Attack} 17. Bg5 $2 {[%emt 0:01:36]} (17. Bxe8 {might work better.} Rxh5 18. Bxh5) 17... Bxg6 {[%emt 0:01:21] Black is clearly winning.} 18. Qxg6 {[%emt 0:00:04] Threatens to win with Bxh6.} Nxe5 {[%emt 0:00:27]} 19. Qxf5 {[%emt 0:00:31]} exf5 {[%emt 0:00:22]} 20. Bxe7 {[%emt 0:00:04]} Nd3 {[%emt 0:02:28] [#] White must now prevent ...Re8.} 21. Na3 {[%emt 0:02:12]} Re8 {[%emt 0:00:55]} 22. Rad1 {[%emt 0:00:56]} Rxe7 {[%emt 0:06:15]} 23. Rxd3 {[%emt 0:00:06]} Qa6 {[%emt 0:00:21][%csl LRa3,LRd3]} 24. c4 {[%emt 0:00:05]} dxc4 {[%emt 0:00:14][%cal Bd5c4,Bc4c3,Bc3c2][%mdl 32]} 25. b5 {[%emt 0:00:04]} Qa4 {[%emt 0:01:48]} 26. Rc3 {[%emt 0:00:30]} Qb4 {[%emt 0:01:36]} 27. Rf3 {[%emt 0:03:26]} c3 {[%emt 0:03:53]} 28. Nb1 {[%emt 0:00:30]} c2 {[%emt 0:00:40]} 29. Na3 {[%emt 0:01:25]} Qb2 {[%emt 0:02:34]} 30. Nc4 {[%emt 0:00:43]} Qb1 {[%emt 0:02:15][%cal Ob1f1] ( -> ...Qxf1+!)} 31. Rc3 {[%emt 0:02:16]} Re1 {[%emt 0:00:23] Weighted Error Value: White=0.77/Black=0.07 (flawless)} 0-1